[Event "*** Titled Tuesday Blitz"]
[Site "Chess.com"]
[Date "2020.05.05"]
[Round "3"]
[White "ShadowJolteon"]
[Black "Azoulas1"]
[Result "1-0"]
[WhiteElo "2249"]
[BlackElo "1887"]
[TimeControl "180+1"]
[EndTime "10:30:53 PDT"]
[Termination "ShadowJolteon won by checkmate"]

1. d4 {[%clk 0:03:00.9]} 1... Nf6 {[%clk 0:02:58.2]} 2. c4 {[%clk 0:03:00.6]}
2... e6 {[%clk 0:02:57.4]} 3. g3 {[%clk 0:03:00.6]} 3... c5 {[%clk 0:02:53.5]}
4. Nf3 {[%clk 0:03:00.5]} 4... cxd4 {[%clk 0:02:48.4]} 5. Nxd4 {[%clk
0:03:01.4]} 5... Nc6 {[%clk 0:02:47]} 6. Bg2 {[%clk 0:03:01.5]} 6... Be7 {[%clk
0:02:46.6]} 7. O-O {[%clk 0:03:01.4]} 7... O-O {[%clk 0:02:45]} 8. b3 {[%clk
0:03:01]} 8... a6 {[%clk 0:02:44.4]} 9. Nc3 {[%clk 0:03:00.2]} 9... Qc7 {[%clk
0:02:43.8]} 10. Bb2 {[%clk 0:03:00.1]} 10... b6 {[%clk 0:02:42.3]} 11. Rc1
{[%clk 0:03:00.2]} 11... Bb7 {[%clk 0:02:41.6]} 12. Nd5 {[%clk 0:02:57.1]} 12...
exd5 {[%clk 0:02:14.3]} 13. cxd5 {[%clk 0:02:58]} 13... Rad8 {[%clk 0:02:13]}
14. Qc2 {[%clk 0:02:49.4]} 14... Bc5 {[%clk 0:02:01.2]} 15. dxc6 {[%clk
0:02:47.2]} 15... dxc6 {[%clk 0:01:58.6]} 16. Nf5 {[%clk 0:02:42]} 16... Rfe8
{[%clk 0:01:55.9]} 17. Bxf6 {[%clk 0:02:35.2]} 17... gxf6 {[%clk 0:01:53.9]} 18.
Rcd1 {[%clk 0:02:32.5]} 18... Rxd1 {[%clk 0:01:51.5]} 19. Rxd1 {[%clk
0:02:29.9]} 19... Qe5 {[%clk 0:01:50.3]} 20. e3 {[%clk 0:02:19]} 20... Bc8
{[%clk 0:01:45]} 21. Nh4 {[%clk 0:01:49.9]} 21... Bg4 {[%clk 0:01:40.7]} 22. Rc1
{[%clk 0:01:36.5]} 22... a5 {[%clk 0:01:33.2]} 23. Bxc6 {[%clk 0:01:35.2]} 23...
Rd8 {[%clk 0:01:30.6]} 24. Bg2 {[%clk 0:01:26.1]} 24... Kg7 {[%clk 0:01:11.9]}
25. h3 {[%clk 0:01:24.4]} 25... Be6 {[%clk 0:01:07.2]} 26. g4 {[%clk 0:01:08.1]}
26... Bxe3 {[%clk 0:00:52.6]} 27. Re1 {[%clk 0:00:45.6]} 27... Rd2 {[%clk
0:00:44.9]} 28. Qxd2 {[%clk 0:00:36.7]} 28... Bxd2 {[%clk 0:00:43.9]} 29. Rxe5
{[%clk 0:00:37.6]} 29... fxe5 {[%clk 0:00:43]} 30. Nf3 {[%clk 0:00:38.5]} 30...
Bc3 {[%clk 0:00:41.6]} 31. Kf1 {[%clk 0:00:37.9]} 31... h6 {[%clk 0:00:40.6]}
32. Ke2 {[%clk 0:00:37.6]} 32... f6 {[%clk 0:00:38.6]} 33. Kd3 {[%clk
0:00:37.6]} 33... Bb4 {[%clk 0:00:38]} 34. Nd2 {[%clk 0:00:33.7]} 34... Bc5
{[%clk 0:00:37.1]} 35. Ne4 {[%clk 0:00:29.5]} 35... Bd4 {[%clk 0:00:36.2]} 36.
f4 {[%clk 0:00:28.4]} 36... Bd7 {[%clk 0:00:22.7]} 37. fxe5 {[%clk 0:00:23.5]}
37... fxe5 {[%clk 0:00:20.6]} 38. Nd6 {[%clk 0:00:23]} 38... Be6 {[%clk
0:00:19.8]} 39. Be4 {[%clk 0:00:20.8]} 39... Kf6 {[%clk 0:00:18.6]} 40. Bf5
{[%clk 0:00:18.4]} 40... Bxf5+ {[%clk 0:00:17.6]} 41. Nxf5 {[%clk 0:00:19.3]}
41... Ba1 {[%clk 0:00:17.2]} 42. Ke4 {[%clk 0:00:19.4]} 42... Kg5 {[%clk
0:00:16.3]} 43. a3 {[%clk 0:00:11.4]} 43... h5 {[%clk 0:00:15.5]} 44. Kf3 {[%clk
0:00:05]} 44... hxg4+ {[%clk 0:00:14.6]} 45. hxg4 {[%clk 0:00:05.9]} 45... e4+
{[%clk 0:00:14.6]} 46. Kxe4 {[%clk 0:00:06.2]} 46... Kxg4 {[%clk 0:00:14.3]} 47.
Ne3+ {[%clk 0:00:05.1]} 47... Kg5 {[%clk 0:00:13.6]} 48. a4 {[%clk 0:00:06]}
48... Kf6 {[%clk 0:00:11.6]} 49. Nd5+ {[%clk 0:00:06.9]} 49... Ke6 {[%clk
0:00:10]} 50. Nxb6 {[%clk 0:00:07.8]} 50... Kd6 {[%clk 0:00:08.9]} 51. Nc4+
{[%clk 0:00:07.4]} 51... Kc5 {[%clk 0:00:08.7]} 52. Nxa5 {[%clk 0:00:07.2]}
52... Kb4 {[%clk 0:00:08.5]} 53. Nc6+ {[%clk 0:00:03.4]} 53... Kxb3 {[%clk
0:00:07.9]} 54. a5 {[%clk 0:00:03.8]} 54... Bf6 {[%clk 0:00:02.8]} 55. a6 {[%clk
0:00:04]} 55... Bd8 {[%clk 0:00:02.3]} 56. Nxd8 {[%clk 0:00:03.5]} 56... Ka4
{[%clk 0:00:01.9]} 57. a7 {[%clk 0:00:04.4]} 57... Kb5 {[%clk 0:00:02.7]} 58.
a8=Q {[%clk 0:00:04.9]} 58... Kb6 {[%clk 0:00:02.7]} 59. Qb7+ {[%clk 0:00:05.8]}
59... Ka5 {[%clk 0:00:02.5]} 60. Kd5 {[%clk 0:00:06.3]} 60... Ka4 {[%clk
0:00:02.3]} 61. Kc4 {[%clk 0:00:07.2]} 61... Ka3 {[%clk 0:00:02.2]} 62. Qb3#
{[%clk 0:00:07.7]} 1-0

[Event "*** Titled Tuesday Blitz"]
[Site "Chess.com"]
[Date "2020.05.05"]
[Round "3"]
[White "dolynachess"]
[Black "DonPreuss"]
[Result "1-0"]
[WhiteElo "2398"]
[BlackElo "2177"]
[TimeControl "180+1"]
[EndTime "10:30:55 PDT"]
[Termination "dolynachess won on time"]

1. Nf3 {[%clk 0:03:00.9]} 1... Nc6 {[%clk 0:02:59.3]} 2. g3 {[%clk 0:03:01.4]}
2... e5 {[%clk 0:02:58.6]} 3. d3 {[%clk 0:03:00.3]} 3... d6 {[%clk 0:02:56.6]}
4. c4 {[%clk 0:03:00]} 4... f5 {[%clk 0:02:56.3]} 5. Bg2 {[%clk 0:03:00.6]} 5...
Nf6 {[%clk 0:02:56.4]} 6. O-O {[%clk 0:03:01.1]} 6... Be7 {[%clk 0:02:56.7]} 7.
Nc3 {[%clk 0:03:00.7]} 7... O-O {[%clk 0:02:56.3]} 8. Rb1 {[%clk 0:03:00.9]}
8... Qe8 {[%clk 0:02:55.2]} 9. Nd5 {[%clk 0:02:59]} 9... Nxd5 {[%clk 0:02:48.1]}
10. cxd5 {[%clk 0:02:59.9]} 10... Nd8 {[%clk 0:02:43]} 11. Qc2 {[%clk
0:02:57.5]} 11... c5 {[%clk 0:02:29.4]} 12. dxc6 {[%clk 0:02:52.6]} 12... bxc6
{[%clk 0:02:29.1]} 13. b4 {[%clk 0:02:48.6]} 13... Bd7 {[%clk 0:02:14]} 14. b5
{[%clk 0:02:00.7]} 14... Rc8 {[%clk 0:02:02.6]} 15. bxc6 {[%clk 0:01:51.9]}
15... Bxc6 {[%clk 0:02:01.7]} 16. Qb3+ {[%clk 0:01:39.8]} 16... Kh8 {[%clk
0:02:00.8]} 17. Be3 {[%clk 0:01:37.7]} 17... f4 {[%clk 0:01:49.5]} 18. Bxa7
{[%clk 0:01:37.3]} 18... Qh5 {[%clk 0:01:42.5]} 19. Rfc1 {[%clk 0:01:18.5]}
19... Nf7 {[%clk 0:01:33.4]} 20. Qe6 {[%clk 0:01:09.2]} 20... Bf6 {[%clk
0:00:28.8]} 21. Rc4 {[%clk 0:00:27.1]} 21... Rce8 {[%clk 0:00:24.6]} 22. Qh3
{[%clk 0:00:22.9]} 22... Qxh3 {[%clk 0:00:23.5]} 23. Bxh3 {[%clk 0:00:23.8]}
23... Bxf3 {[%clk 0:00:23.8]} 24. exf3 {[%clk 0:00:24.5]} 24... Ng5 {[%clk
0:00:24.3]} 25. Bg2 {[%clk 0:00:24.8]} 25... d5 {[%clk 0:00:22.6]} 26. Rc7
{[%clk 0:00:20.5]} 26... Rc8 {[%clk 0:00:21.5]} 27. Rbc1 {[%clk 0:00:20]} 27...
Rxc7 {[%clk 0:00:21.3]} 28. Rxc7 {[%clk 0:00:20.9]} 28... h6 {[%clk 0:00:21.7]}
29. h4 {[%clk 0:00:19.2]} 29... Ne6 {[%clk 0:00:21.3]} 30. Rd7 {[%clk
0:00:19.7]} 30... Rd8 {[%clk 0:00:17.3]} 31. Rxd8+ {[%clk 0:00:19.1]} 31... Nxd8
{[%clk 0:00:17.9]} 32. Bh3 {[%clk 0:00:19.7]} 32... Kg8 {[%clk 0:00:17.5]} 33.
h5 {[%clk 0:00:19.8]} 33... Kf7 {[%clk 0:00:17.6]} 34. Bb6 {[%clk 0:00:19.9]}
34... Nc6 {[%clk 0:00:16]} 35. a4 {[%clk 0:00:13.4]} 35... Ke7 {[%clk
0:00:15.5]} 36. a5 {[%clk 0:00:13]} 36... fxg3 {[%clk 0:00:10.9]} 37. fxg3
{[%clk 0:00:12.6]} 37... e4 {[%clk 0:00:09.7]} 38. fxe4 {[%clk 0:00:11.8]} 38...
Bd4+ {[%clk 0:00:09.9]} 39. Bxd4 {[%clk 0:00:11]} 39... Nxd4 {[%clk 0:00:10.5]}
40. exd5 {[%clk 0:00:11.3]} 40... Kd6 {[%clk 0:00:10.5]} 41. a6 {[%clk
0:00:11.3]} 41... Nb5 {[%clk 0:00:10.4]} 42. Bc8 {[%clk 0:00:11.4]} 42... Kxd5
{[%clk 0:00:10.1]} 43. Bb7+ {[%clk 0:00:11.4]} 43... Kd4 {[%clk 0:00:10.3]} 44.
Bc6 {[%clk 0:00:09.5]} 44... Na7 {[%clk 0:00:10]} 45. Be4 {[%clk 0:00:07.9]}
45... Ke3 {[%clk 0:00:10.4]} 46. Kh2 {[%clk 0:00:08]} 46... Nb5 {[%clk 0:00:09]}
47. Kh3 {[%clk 0:00:08.9]} 47... Kd4 {[%clk 0:00:08.3]} 48. Kg4 {[%clk
0:00:09.3]} 48... Ke5 {[%clk 0:00:09.2]} 49. Kf3 {[%clk 0:00:08.9]} 49... Na7
{[%clk 0:00:09.2]} 50. Ke3 {[%clk 0:00:08.7]} 50... Nb5 {[%clk 0:00:09.7]} 51.
d4+ {[%clk 0:00:08.9]} 51... Kd6 {[%clk 0:00:07.3]} 52. Kf4 {[%clk 0:00:08.6]}
52... Na7 {[%clk 0:00:08.2]} 53. Kf5 {[%clk 0:00:07.8]} 53... Ke7 {[%clk
0:00:08.3]} 54. Kg6 {[%clk 0:00:08]} 54... Kf8 {[%clk 0:00:08]} 55. g4 {[%clk
0:00:08.9]} 55... Nc8 {[%clk 0:00:07.8]} 56. d5 {[%clk 0:00:06]} 56... Ne7+
{[%clk 0:00:04.5]} 57. Kh7 {[%clk 0:00:06]} 57... Nc8 {[%clk 0:00:04.6]} 58. Bf5
{[%clk 0:00:05]} 58... Na7 {[%clk 0:00:04.5]} 59. d6 {[%clk 0:00:05.3]} 59...
Kf7 {[%clk 0:00:04.7]} 60. d7 {[%clk 0:00:04.7]} 60... Ke7 {[%clk 0:00:04.8]}
61. Kxg7 {[%clk 0:00:05.4]} 61... Nc6 {[%clk 0:00:04.4]} 62. Kxh6 {[%clk
0:00:06]} 62... Nb8 {[%clk 0:00:04]} 63. Kg5 {[%clk 0:00:06.3]} 63... Nxa6
{[%clk 0:00:03.1]} 64. h6 {[%clk 0:00:06.8]} 64... Nc5 {[%clk 0:00:01.3]} 65. h7
{[%clk 0:00:07.1]} 65... Ne6+ {[%clk 0:00:01.6]} 66. Bxe6 {[%clk 0:00:07]} 1-0

[Event "*** Titled Tuesday Blitz"]
[Site "Chess.com"]
[Date "2020.05.05"]
[Round "3"]
[White "jguerramzllo"]
[Black "GHANDEEVAM2003"]
[Result "1/2-1/2"]
[WhiteElo "2649"]
[BlackElo "2878"]
[TimeControl "180+1"]
[EndTime "10:30:57 PDT"]
[Termination "Game drawn - insufficient material"]

1. c4 {[%clk 0:03:00.9]} 1... e6 {[%clk 0:02:58.6]} 2. Nf3 {[%clk 0:02:59.4]}
2... d5 {[%clk 0:02:58.6]} 3. g3 {[%clk 0:03:00]} 3... Nf6 {[%clk 0:02:58.8]} 4.
Bg2 {[%clk 0:02:59.8]} 4... dxc4 {[%clk 0:02:58.9]} 5. Qa4+ {[%clk 0:02:57.9]}
5... Nbd7 {[%clk 0:02:58.8]} 6. O-O {[%clk 0:02:53.4]} 6... a6 {[%clk 0:02:57]}
7. Qxc4 {[%clk 0:02:52.1]} 7... b5 {[%clk 0:02:57.5]} 8. Qc2 {[%clk 0:02:45.9]}
8... Bb7 {[%clk 0:02:57.7]} 9. d4 {[%clk 0:02:24.2]} 9... c5 {[%clk 0:02:50.6]}
10. Nc3 {[%clk 0:01:55.8]} 10... Rc8 {[%clk 0:02:48.2]} 11. Qd1 {[%clk
0:01:49.2]} 11... cxd4 {[%clk 0:02:20]} 12. Nxd4 {[%clk 0:01:48.1]} 12... Bxg2
{[%clk 0:02:20.9]} 13. Kxg2 {[%clk 0:01:48.6]} 13... Qb6 {[%clk 0:02:20.5]} 14.
Nf3 {[%clk 0:01:45.7]} 14... Bc5 {[%clk 0:02:17.6]} 15. Bg5 {[%clk 0:01:39.9]}
15... h6 {[%clk 0:02:14.4]} 16. Bxf6 {[%clk 0:01:39.7]} 16... Nxf6 {[%clk
0:02:15.3]} 17. e3 {[%clk 0:01:38.2]} 17... O-O {[%clk 0:02:14.5]} 18. Qe2
{[%clk 0:01:38.5]} 18... Bb4 {[%clk 0:02:10.8]} 19. Nb1 {[%clk 0:01:26.9]} 19...
Rfd8 {[%clk 0:02:07.2]} 20. a3 {[%clk 0:01:26.5]} 20... Be7 {[%clk 0:02:06.8]}
21. Nc3 {[%clk 0:01:23]} 21... Qb7 {[%clk 0:01:52.5]} 22. Rfd1 {[%clk
0:01:20.5]} 22... Nd7 {[%clk 0:01:52.5]} 23. Kg1 {[%clk 0:01:18.7]} 23... Nc5
{[%clk 0:01:49.5]} 24. Rxd8+ {[%clk 0:01:16.4]} 24... Rxd8 {[%clk 0:01:50.4]}
25. Rd1 {[%clk 0:01:16.2]} 25... Rc8 {[%clk 0:01:49.8]} 26. Nd4 {[%clk
0:01:13.8]} 26... Bf6 {[%clk 0:01:46.1]} 27. Qc2 {[%clk 0:00:55.7]} 27... Na4
{[%clk 0:01:43]} 28. Nde2 {[%clk 0:00:48.2]} 28... Qc7 {[%clk 0:01:31.5]} 29.
Rd3 {[%clk 0:00:46.6]} 29... g6 {[%clk 0:01:22.7]} 30. Qb1 {[%clk 0:00:32.7]}
30... Nc5 {[%clk 0:01:19.2]} 31. Rd1 {[%clk 0:00:30.6]} 31... Kg7 {[%clk
0:01:19.3]} 32. h4 {[%clk 0:00:27.3]} 32... Qb7 {[%clk 0:01:17.9]} 33. Nd4
{[%clk 0:00:23]} 33... Rc7 {[%clk 0:01:04]} 34. Nde2 {[%clk 0:00:21.1]} 34...
Nd7 {[%clk 0:01:02]} 35. Nd4 {[%clk 0:00:19]} 35... Bxd4 {[%clk 0:00:58.7]} 36.
exd4 {[%clk 0:00:18]} 36... Nf6 {[%clk 0:00:59]} 37. Qd3 {[%clk 0:00:16.4]}
37... Rd7 {[%clk 0:00:58.5]} 38. Qe3 {[%clk 0:00:16.7]} 38... Nd5 {[%clk
0:00:55.3]} 39. Qe5+ {[%clk 0:00:15.7]} 39... Kg8 {[%clk 0:00:45.9]} 40. Ne4
{[%clk 0:00:15.3]} 40... Qc7 {[%clk 0:00:46.4]} 41. Nc5 {[%clk 0:00:14.7]} 41...
Qxe5 {[%clk 0:00:42]} 42. dxe5 {[%clk 0:00:14.2]} 42... Ra7 {[%clk 0:00:42.6]}
43. Kg2 {[%clk 0:00:13]} 43... Rc7 {[%clk 0:00:36.4]} 44. Rc1 {[%clk 0:00:13.1]}
44... Nb6 {[%clk 0:00:32.4]} 45. Kf3 {[%clk 0:00:12.5]} 45... Nc4 {[%clk
0:00:31.8]} 46. Nd3 {[%clk 0:00:10.6]} 46... Nxe5+ {[%clk 0:00:31.7]} 47. Ke3
{[%clk 0:00:11]} 47... Ng4+ {[%clk 0:00:25.4]} 48. Kd4 {[%clk 0:00:09.7]} 48...
Rxc1 {[%clk 0:00:22.8]} 49. Nxc1 {[%clk 0:00:09.2]} 49... Nxf2 {[%clk
0:00:23.4]} 50. Kc5 {[%clk 0:00:09.4]} 50... e5 {[%clk 0:00:22.3]} 51. Kb6
{[%clk 0:00:09.1]} 51... Nd1 {[%clk 0:00:17.2]} 52. b4 {[%clk 0:00:07.6]} 52...
f5 {[%clk 0:00:15]} 53. Kxa6 {[%clk 0:00:07.6]} 53... f4 {[%clk 0:00:15.5]} 54.
gxf4 {[%clk 0:00:05.8]} 54... exf4 {[%clk 0:00:16.4]} 55. Kxb5 {[%clk
0:00:05.3]} 55... g5 {[%clk 0:00:12.2]} 56. hxg5 {[%clk 0:00:04.9]} 56... hxg5
{[%clk 0:00:13.1]} 57. a4 {[%clk 0:00:04.5]} 57... f3 {[%clk 0:00:12.9]} 58. Nd3
{[%clk 0:00:04.2]} 58... Nc3+ {[%clk 0:00:11.6]} 59. Kc4 {[%clk 0:00:03.8]}
59... Nxa4 {[%clk 0:00:11.9]} 60. Kd4 {[%clk 0:00:04]} 60... Nb2 {[%clk
0:00:09.8]} 61. Nf2 {[%clk 0:00:03.8]} 61... Kf7 {[%clk 0:00:08.3]} 62. Ke4
{[%clk 0:00:03.8]} 62... Ke6 {[%clk 0:00:07.9]} 63. Kxf3 {[%clk 0:00:04.3]}
63... Kd5 {[%clk 0:00:08.5]} 64. Ne4 {[%clk 0:00:04.5]} 64... g4+ {[%clk
0:00:07.9]} 65. Kxg4 {[%clk 0:00:04.4]} 65... Kxe4 {[%clk 0:00:08.5]} 66. b5
{[%clk 0:00:04.4]} 66... Nc4 {[%clk 0:00:09.4]} 67. b6 {[%clk 0:00:04.7]} 67...
Nxb6 {[%clk 0:00:10.3]} 1/2-1/2

[Event "*** Titled Tuesday Blitz"]
[Site "Chess.com"]
[Date "2020.05.05"]
[Round "3"]
[White "DFeco"]
[Black "Katheksis"]
[Result "1-0"]
[WhiteElo "2225"]
[BlackElo "2425"]
[TimeControl "180+1"]
[EndTime "10:30:57 PDT"]
[Termination "DFeco won by resignation"]

1. c4 {[%clk 0:03:00.9]} 1... c6 {[%clk 0:02:59]} 2. g3 {[%clk 0:03:00.8]} 2...
d5 {[%clk 0:02:58.9]} 3. Nf3 {[%clk 0:03:01.3]} 3... Nf6 {[%clk 0:02:59.4]} 4.
Bg2 {[%clk 0:03:01.9]} 4... Bf5 {[%clk 0:02:59]} 5. O-O {[%clk 0:03:01.3]} 5...
e6 {[%clk 0:02:59.4]} 6. d3 {[%clk 0:03:01]} 6... Nbd7 {[%clk 0:02:59.5]} 7. Nc3
{[%clk 0:02:59.3]} 7... Bc5 {[%clk 0:02:58.6]} 8. Re1 {[%clk 0:02:41.8]} 8...
O-O {[%clk 0:02:56.3]} 9. e4 {[%clk 0:02:39.1]} 9... Bg6 {[%clk 0:02:51.5]} 10.
e5 {[%clk 0:02:35.1]} 10... Ng4 {[%clk 0:02:42.4]} 11. d4 {[%clk 0:02:34.6]}
11... Be7 {[%clk 0:02:34.8]} 12. cxd5 {[%clk 0:02:34.4]} 12... cxd5 {[%clk
0:02:34.6]} 13. h3 {[%clk 0:02:33.3]} 13... Nh6 {[%clk 0:02:34.4]} 14. Bxh6
{[%clk 0:02:30.9]} 14... gxh6 {[%clk 0:02:35.3]} 15. h4 {[%clk 0:02:25.8]} 15...
Nb8 {[%clk 0:02:26]} 16. Qd2 {[%clk 0:02:24.6]} 16... Kg7 {[%clk 0:02:21.7]} 17.
Nh2 {[%clk 0:02:20.3]} 17... h5 {[%clk 0:02:19.6]} 18. f4 {[%clk 0:02:14.4]}
18... Nc6 {[%clk 0:02:01.9]} 19. Rf1 {[%clk 0:01:53.1]} 19... f5 {[%clk
0:01:41.8]} 20. Nf3 {[%clk 0:01:44.1]} 20... Rc8 {[%clk 0:01:40.6]} 21. Rac1
{[%clk 0:01:41.3]} 21... Na5 {[%clk 0:01:28.6]} 22. Qe2 {[%clk 0:01:27.4]} 22...
Nc4 {[%clk 0:01:17]} 23. b3 {[%clk 0:01:05.4]} 23... Na5 {[%clk 0:01:11.1]} 24.
Ng5 {[%clk 0:00:50.1]} 24... Bxg5 {[%clk 0:00:24]} 25. hxg5 {[%clk 0:00:48.9]}
25... a6 {[%clk 0:00:21.1]} 26. Bf3 {[%clk 0:00:48.7]} 26... Qe8 {[%clk
0:00:20.6]} 27. Kg2 {[%clk 0:00:48.9]} 27... h6 {[%clk 0:00:19.3]} 28. gxh6+
{[%clk 0:00:42.6]} 28... Kxh6 {[%clk 0:00:20.2]} 29. Rh1 {[%clk 0:00:42.5]}
29... Nc6 {[%clk 0:00:19.6]} 30. Bxh5 {[%clk 0:00:41]} 30... Kg7 {[%clk
0:00:19.3]} 31. Bxg6 {[%clk 0:00:35.9]} 31... Qxg6 {[%clk 0:00:20.2]} 32. Qe3
{[%clk 0:00:33]} 32... Rh8 {[%clk 0:00:19.7]} 33. Ne2 {[%clk 0:00:29.2]} 33...
Rxh1 {[%clk 0:00:17.2]} 34. Rxh1 {[%clk 0:00:28.5]} 34... Rh8 {[%clk 0:00:17.7]}
35. Rxh8 {[%clk 0:00:27.8]} 35... Kxh8 {[%clk 0:00:18.6]} 36. a3 {[%clk
0:00:23.6]} 36... Kg7 {[%clk 0:00:18.9]} 37. b4 {[%clk 0:00:22.4]} 37... Qh5
{[%clk 0:00:18.5]} 38. Qf3 {[%clk 0:00:20.2]} 38... Qe8 {[%clk 0:00:18.7]} 39.
Qc3 {[%clk 0:00:19.6]} 39... Qd7 {[%clk 0:00:18.3]} 40. a4 {[%clk 0:00:18.9]}
40... Ne7 {[%clk 0:00:18.5]} 41. a5 {[%clk 0:00:17.8]} 41... Qb5 {[%clk
0:00:18.4]} 42. Kf2 {[%clk 0:00:17.1]} 42... Nc6 {[%clk 0:00:18.6]} 43. Qc5
{[%clk 0:00:17]} 43... Qxb4 {[%clk 0:00:17]} 44. Qxb4 {[%clk 0:00:16]} 44...
Nxb4 {[%clk 0:00:17.9]} 45. Nc3 {[%clk 0:00:15.9]} 45... Nc6 {[%clk 0:00:18.3]}
46. Ke3 {[%clk 0:00:15.6]} 46... Nxa5 {[%clk 0:00:18.6]} 47. Na4 {[%clk
0:00:16.4]} 47... b5 {[%clk 0:00:18.1]} 48. Nc5 {[%clk 0:00:16.7]} 48... Nc4+
{[%clk 0:00:18.3]} 49. Kd3 {[%clk 0:00:16.4]} 49... a5 {[%clk 0:00:18.9]} 50.
Nxe6+ {[%clk 0:00:15.7]} 50... Kf7 {[%clk 0:00:19.5]} 51. Nc7 {[%clk 0:00:16.4]}
51... b4 {[%clk 0:00:19.8]} 52. Nxd5 {[%clk 0:00:16.2]} 52... Nb2+ {[%clk
0:00:19.8]} 53. Kc2 {[%clk 0:00:15.9]} 53... Na4 {[%clk 0:00:20.2]} 54. Nc7
{[%clk 0:00:15.5]} 54... Nb6 {[%clk 0:00:19.9]} 55. d5 {[%clk 0:00:15.4]} 55...
a4 {[%clk 0:00:20.1]} 56. d6 {[%clk 0:00:15.2]} 56... a3 {[%clk 0:00:19.2]} 57.
Kb3 {[%clk 0:00:14.4]} 57... Kf8 {[%clk 0:00:19.7]} 58. e6 {[%clk 0:00:14]}
58... Kg7 {[%clk 0:00:15.7]} 59. e7 {[%clk 0:00:13.8]} 59... Kf6 {[%clk
0:00:16.1]} 60. e8=Q {[%clk 0:00:13.5]} 60... a2 {[%clk 0:00:17]} 61. Qe7+
{[%clk 0:00:13.2]} 61... Kg6 {[%clk 0:00:17.3]} 62. Kxa2 {[%clk 0:00:13.4]}
62... Nd5 {[%clk 0:00:17.4]} 63. Qe6+ {[%clk 0:00:13.2]} 63... Nf6 {[%clk
0:00:17]} 64. Ne8 {[%clk 0:00:12.7]} 64... Kh5 {[%clk 0:00:17.5]} 65. Nxf6+
{[%clk 0:00:11.7]} 65... Kg6 {[%clk 0:00:17.7]} 66. Qe7 {[%clk 0:00:10.8]} 66...
b3+ {[%clk 0:00:18.6]} 67. Kxb3 {[%clk 0:00:10.3]} 67... Kh6 {[%clk 0:00:18.7]}
68. Ng8+ {[%clk 0:00:10.3]} 68... Kh5 {[%clk 0:00:18.6]} 69. Qf8 {[%clk
0:00:09.3]} 69... Kg4 {[%clk 0:00:18.3]} 70. d7 {[%clk 0:00:09.4]} 1-0

[Event "*** Titled Tuesday Blitz"]
[Site "Chess.com"]
[Date "2020.05.05"]
[Round "3"]
[White "adriangschnitzer"]
[Black "Twitch_ElhamBlitz05"]
[Result "1-0"]
[WhiteElo "2425"]
[BlackElo "2633"]
[TimeControl "180+1"]
[EndTime "10:31:00 PDT"]
[Termination "adriangschnitzer won by resignation"]

1. c4 {[%clk 0:03:00.9]} 1... Nf6 {[%clk 0:02:59.4]} 2. Nc3 {[%clk 0:03:00.5]}
2... e6 {[%clk 0:02:58.9]} 3. d4 {[%clk 0:02:59.4]} 3... d5 {[%clk 0:02:59.8]}
4. f3 {[%clk 0:02:59.5]} 4... c5 {[%clk 0:02:54.1]} 5. e3 {[%clk 0:02:46.1]}
5... cxd4 {[%clk 0:02:51.6]} 6. exd4 {[%clk 0:02:47]} 6... Nc6 {[%clk
0:02:51.7]} 7. c5 {[%clk 0:02:39.4]} 7... e5 {[%clk 0:02:35.7]} 8. dxe5 {[%clk
0:02:29.5]} 8... Nxe5 {[%clk 0:02:36.6]} 9. Be3 {[%clk 0:02:28.9]} 9... Be7
{[%clk 0:02:33.7]} 10. Bb5+ {[%clk 0:02:27.4]} 10... Nc6 {[%clk 0:02:31.9]} 11.
Nge2 {[%clk 0:02:24.9]} 11... O-O {[%clk 0:02:30.8]} 12. O-O {[%clk 0:02:25]}
12... Re8 {[%clk 0:02:23.9]} 13. Bf2 {[%clk 0:02:24.6]} 13... a6 {[%clk
0:02:22.4]} 14. Ba4 {[%clk 0:02:16]} 14... Qa5 {[%clk 0:02:20.6]} 15. Bb3 {[%clk
0:01:50.2]} 15... Bxc5 {[%clk 0:02:18.9]} 16. Nxd5 {[%clk 0:01:48.7]} 16... Nxd5
{[%clk 0:02:18.1]} 17. Qxd5 {[%clk 0:01:43.7]} 17... Bxf2+ {[%clk 0:02:18.1]}
18. Rxf2 {[%clk 0:01:44.6]} 18... Qxd5 {[%clk 0:02:17.1]} 19. Bxd5 {[%clk
0:01:45.5]} 19... Be6 {[%clk 0:02:17.8]} 20. Nc3 {[%clk 0:01:35.3]} 20... Bxd5
{[%clk 0:02:14.7]} 21. Nxd5 {[%clk 0:01:36.2]} 21... Rad8 {[%clk 0:02:15.4]} 22.
Rd1 {[%clk 0:01:26.2]} 22... f6 {[%clk 0:02:09.4]} 23. Rfd2 {[%clk 0:01:22.1]}
23... Kf7 {[%clk 0:02:09.8]} 24. Kf2 {[%clk 0:01:19.6]} 24... Ne5 {[%clk
0:01:58.9]} 25. Nb6 {[%clk 0:00:59.8]} 25... Rxd2+ {[%clk 0:01:42.4]} 26. Rxd2
{[%clk 0:01:00.7]} 26... Re6 {[%clk 0:01:42.8]} 27. Nd7 {[%clk 0:00:50.3]} 27...
Nc6 {[%clk 0:01:37.2]} 28. Nc5 {[%clk 0:00:47.2]} 28... Ne7 {[%clk 0:01:38]} 29.
Nxe6 {[%clk 0:00:44.6]} 29... Kxe6 {[%clk 0:01:38]} 30. Ke3 {[%clk 0:00:39]}
30... Nc6 {[%clk 0:01:38]} 31. b3 {[%clk 0:00:35.3]} 31... Nb4 {[%clk
0:01:36.6]} 32. Kd4 {[%clk 0:00:32.8]} 32... b6 {[%clk 0:01:31.2]} 33. a4 {[%clk
0:00:23.3]} 33... Nc6+ {[%clk 0:01:27.6]} 34. Ke4 {[%clk 0:00:20.4]} 34... Na5
{[%clk 0:01:10.8]} 35. b4 {[%clk 0:00:19.2]} 35... Nc4 {[%clk 0:00:59.6]} 36.
Rc2 {[%clk 0:00:17.4]} 36... Nd6+ {[%clk 0:00:49.4]} 37. Kd4 {[%clk 0:00:17.1]}
37... Nf5+ {[%clk 0:00:47.7]} 38. Kd3 {[%clk 0:00:16.7]} 38... Kd6 {[%clk
0:00:42]} 39. Rc8 {[%clk 0:00:13.8]} 39... Ne7 {[%clk 0:00:38.9]} 40. Ra8 {[%clk
0:00:13.5]} 40... Nc6 {[%clk 0:00:39.6]} 41. b5 {[%clk 0:00:11.5]} 41... Ne5+
{[%clk 0:00:15.9]} 42. Ke4 {[%clk 0:00:11.2]} 42... axb5 {[%clk 0:00:16.8]} 43.
axb5 {[%clk 0:00:10.9]} 43... h6 {[%clk 0:00:07.3]} 44. Kf5 {[%clk 0:00:08.6]}
44... Kc5 {[%clk 0:00:04.7]} 45. Ra7 {[%clk 0:00:07.3]} 45... g5 {[%clk
0:00:03.3]} 46. Kxf6 {[%clk 0:00:06.7]} 46... Nc4 {[%clk 0:00:04.2]} 47. Kg6
{[%clk 0:00:06.2]} 47... Ne3 {[%clk 0:00:03.6]} 48. g4 {[%clk 0:00:05.1]} 48...
Ng2 {[%clk 0:00:04.5]} 49. Kxh6 {[%clk 0:00:05]} 49... Nh4 {[%clk 0:00:05.4]}
50. Kxg5 {[%clk 0:00:04.8]} 50... Nxf3+ {[%clk 0:00:06.3]} 51. Kf4 {[%clk
0:00:05]} 51... Nxh2 {[%clk 0:00:07.2]} 52. Rh7 {[%clk 0:00:05]} 52... Nxg4
{[%clk 0:00:03.1]} 53. Kxg4 {[%clk 0:00:05.9]} 53... Kxb5 {[%clk 0:00:04]} 54.
Kf3 {[%clk 0:00:05.3]} 54... Kc4 {[%clk 0:00:04.9]} 55. Ke2 {[%clk 0:00:05.5]}
55... Kb3 {[%clk 0:00:05.8]} 56. Kd1 {[%clk 0:00:06.4]} 56... b5 {[%clk
0:00:06.7]} 57. Kc1 {[%clk 0:00:06]} 57... b4 {[%clk 0:00:07.6]} 58. Kb1 {[%clk
0:00:05.6]} 58... Ka3 {[%clk 0:00:08.5]} 59. Rh3+ {[%clk 0:00:05.6]} 59... Ka4
{[%clk 0:00:08.2]} 60. Rg3 {[%clk 0:00:06.5]} 60... Kb5 {[%clk 0:00:09.1]} 61.
Kb2 {[%clk 0:00:07.4]} 61... Kc4 {[%clk 0:00:10]} 62. Rg4+ {[%clk 0:00:07.4]}
62... Kb5 {[%clk 0:00:10.9]} 63. Kb3 {[%clk 0:00:08.3]} 1-0